[Event "Bangladesh SAIF Powertec-ch 2024"]
[Site "Dhaka"]
[Date "2024.07.04"]
[Round "11.1"]
[White "Manon, Reja Neer"]
[Black "Islam, Khandaker Aminul"]
[Result "1-0"]
[ECO "C54"]
[WhiteElo "2445"]
[BlackElo "2115"]
[Annotator "TA"]
[PlyCount "51"]
[EventDate "2024.06.23"]
[EventType "tourn"]
[EventCountry "BAN"]
[SourceTitle "playchess.com"]
[Source "ChessBase"]
[SourceQuality "1"]
[TimeControl "40/5400+30:1800+30"]

{[%evp 11,51,21,29,17,23,15,20,12,12,8,13,8,33,36,30,13,13,16,18,14,23,15,25,19,20,14,52,65,166,28,41,50,47,49,159,162,156,152,205,191,256,194]} 1. e4 {[%emt 0:00:12]} e5 {[%emt 0:00:06]} 2. Nf3 {[%emt 0:00:50]} Nc6 {[%emt 0:00:03]} 3. Bc4 {[%emt 0:01:17]} Bc5 {[%emt 0:00:07]} 4. d3 {[%emt 0:01:21]} Nf6 {[%emt 0:00:11]} 5. c3 {[%emt 0:01:38]} a6 {[%emt 0:00:21]} 6. O-O {[%emt 0:02:55]} Ba7 {[%emt 0:00:06]} 7. Re1 {[%emt 0:07:12]} d6 {[%emt 0:00:24]} 8. a4 {[%emt 0:01:52]} h6 {[%emt 0:00:07]} 9. Be3 {[%emt 0:04:13] The position is equal.} Bxe3 {[%emt 0:00:57]} 10. Rxe3 {[%emt 0:00:10]} O-O {[%emt 0:00:42]} 11. Nbd2 {[%emt 0:00:18]} Be6 {[%emt 0:02:50]} 12. Bxe6 {[%emt 0:02:30]} fxe6 {[%emt 0:00:08]} 13. d4 {[%emt 0:00:05]} Qe8 {[%emt 0:05:09]} 14. h3 {[%emt 0:05:59]} Nd7 {[%emt 0:06:28]} 15. Qb3 {[%emt 0:23:24]} Rb8 {[%emt 0:00:23]} 16. Rd1 {[%emt 0:00:24]} Rf4 {[%emt 0:01:41]} 17. Nf1 {[%emt 0:09:42]} Qf7 {[%emt 0:05:00]} 18. Ng3 {[%emt 0:00:56]} exd4 {[%emt 0:08:18]} 19. cxd4 {[%emt 0:01:24]} e5 {[%emt 0:00:49] [#]} ({Black should try} 19... d5 $14) 20. Qxf7+ {[%emt 0:05:40]} (20. d5 $1 $18 {[%cal Rd5c6]}) 20... Rxf7 $11 {[%emt 0:02:10]} 21. d5 {[%emt 0:00:10]} Nb4 {[%emt 0:10:57]} 22. Rc3 $1 {[%emt 0:04:32]} Nc5 {[%emt 0:13:06] [#]} (22... Nf6 $14) 23. Nxe5 $1 $16 {[%emt 0:02:00][%mdl 512]} Re7 {[%emt 0:01:25]} 24. Ng6 {[%emt 0:00:37]} Rd7 {[%emt 0:00:59]} (24... Ree8 $16 25. f3 Kh7) 25. e5 $18 {[%emt 0:04:35][%cal Be4e5,Be5e6][%mdl 32] Rd4 is the strong threat.} Nxa4 {[%emt 0:00:13]} (25... Kh7 $142) 26. e6 {[%emt 0:00:45] Weighted Error Value: White=0.18 (very precise) /Black=0.23 (precise) .  Mistake:       	White=1     	Black=4      Inaccurate:     	---       	Black=1      OK:         	White=7     	Black=4      Strong:       	White=1     	---        Brilliant:      	White=1     	---} 1-0

[Event "Bangladesh SAIF Powertec-ch 2024"]
[Site "Dhaka"]
[Date "2024.07.04"]
[Round "11.2"]
[White "Murshed, Niaz"]
[Black "Chatterjee, Debaraj"]
[Result "1-0"]
[ECO "E70"]
[WhiteElo "2317"]
[BlackElo "2132"]
[Annotator "TA"]
[PlyCount "59"]
[EventDate "2024.06.23"]
[EventType "tourn"]
[EventCountry "BAN"]
[SourceTitle "playchess.com"]
[Source "ChessBase"]
[SourceQuality "1"]
[TimeControl "40/5400+30:1800+30"]

{[%evp 15,59,33,36,10,7,0,14,12,40,12,26,22,19,25,43,39,52,24,41,25,18,29,41,10,17,0,23,0,44,48,147,141,149,137,140,146,151,141,151,148,406,406,528,529,529,529]} 1. d4 {[%emt 0:00:04]} Nf6 {[%emt 0:04:30]} 2. c4 {[%emt 0:00:30]} g6 {[%emt 0:00:34]} 3. Nc3 {[%emt 0:00:45]} Bg7 {[%emt 0:00:08]} 4. e4 {[%emt 0:00:04]} d6 {[%emt 0:00:06]} 5. Bd3 {[%emt 0:00:53]} O-O {[%emt 0:00:39]} 6. Nge2 {[%emt 0:00:04]} Nc6 {[%emt 0:00:10][%cal Bb8c6,Bc6d4,Bd4e2][%mdl 32]} 7. O-O {[%emt 0:01:24]} e5 {[%emt 0:03:24]} 8. d5 {[%emt 0:00:33]} Nd4 {[%emt 0:00:06]} 9. Nb5 {[%emt 0:02:43]} Nxe2+ {[%emt 0:17:51]} 10. Qxe2 {[%emt 0:00:32]} a6 {[%emt 0:00:05]} 11. Nc3 {[%emt 0:00:12] The position is equal.} Nd7 {[%emt 0:00:16]} 12. Be3 {[%emt 0:03:19]} f5 {[%emt 0:00:19]} 13. exf5 {[%emt 0:00:57]} gxf5 {[%emt 0:00:03]} 14. f3 {[%emt 0:00:22]} Nc5 {[%emt 0:10:05]} 15. Bc2 {[%emt 0:00:30]} a5 {[%emt 0:00:13]} 16. Qd2 {[%emt 0:11:50]} Bd7 {[%emt 0:05:20]} 17. Rae1 {[%emt 0:01:27]} b6 {[%emt 0:03:07]} 18. b3 {[%emt 0:01:47]} Qf6 {[%emt 0:03:42]} 19. Bg5 {[%emt 0:03:38]} Qf7 {[%emt 0:05:55] [#]} 20. g4 $1 {[%emt 0:02:45]} Rae8 {[%emt 0:04:21]} (20... Kh8 21. Nb5) 21. Ne2 {[%emt 0:28:22]} e4 {[%emt 0:17:45]} 22. Ng3 $1 {[%emt 0:00:54]} e3 {[%emt 0:09:41]} (22... Qg6 $14) 23. Rxe3 $16 {[%emt 0:01:43]} ({Much weaker is} 23. Bxe3 $6 Rxe3 (23... f4 24. Bxc5 Rxe1 25. Qxe1 $11) 24. Rxe3 (24. Qxe3 f4 $11) 24... f4 $11 (24... fxg4 $2 25. fxg4 Be5 26. Rxf7 $18)) 23... Rxe3 {[%emt 0:00:09]} 24. Bxe3 {[%emt 0:00:04]} (24. Qxe3 $2 {perishes.} f4 (24... fxg4 $2 {is the wrong capture.} 25. fxg4 Qe8 26. Rxf8+ Qxf8 27. Bf5 $18) 25. Bxf4 Qxf4 26. Qxf4 Rxf4 $19) 24... f4 {[%emt 0:00:10]} 25. Bxc5 {[%emt 0:00:07]} fxg3 {[%emt 0:00:16]} 26. Be3 {[%emt 0:00:59]} Bxg4 {[%emt 0:01:14] White must now prevent ...Bh3.} 27. hxg3 $40 {[%emt 0:00:09][%mdl 128] White goes for the king.} Bxf3 $2 {[%emt 0:02:41][%mdl 8192] [#]} (27... Bh5 $16 {might work better.} 28. Bf4 Re8) 28. Bd1 $1 $18 {[%emt 0:01:05]} Qh5 {[%emt 0:00:49] [#] ( -> ...Qh1+)} 29. Rxf3 $1 {[%emt 0:00:56]} Rxf3 {[%emt 0:01:23]} 30. Qg2 {[%emt 0:01:20] Weighted Error Value: White=0.08 (flawless) /Black=0.40.  Loses game:     	---       	Black=1      Mistake:       	---       	Black=1      Inaccurate:     	White=3     	Black=3      OK:         	White=7     	Black=5      Best:        	White=3     	---        Strong:       	White=3     	---} 1-0

[Event "Bangladesh SAIF Powertec-ch 2024"]
[Site "Dhaka"]
[Date "2024.07.04"]
[Round "11.3"]
[White "Amit Bikram, Roy"]
[Black "Zia, Tahsin Tajwar"]
[Result "0-1"]
[ECO "A58"]
[WhiteElo "1989"]
[BlackElo "2241"]
[Annotator "TA"]
[PlyCount "102"]
[EventDate "2024.06.23"]
[EventType "tourn"]
[EventCountry "BAN"]
[SourceTitle "playchess.com"]
[Source "ChessBase"]
[SourceQuality "1"]
[TimeControl "40/5400+30:1800+30"]

{[%evp 24,102,55,43,35,36,63,37,27,24,21,33,42,21,33,-20,63,58,62,-35,-51,0,88,-58,-72,-65,-48,-55,21,-222,-219,-462,-465,-652,-614,-586,-454,-431,-267,-427,-438,-385,-461,-447,-460,-504,-403,-520,-510,-495,-470,-777,-525,-619,-619,-620,-623,-670,-674,-850,-912,-905,-888,-932,-806,-5057,-5057,-12786,-11958,-11958,-11958,-6078,-6070,-6070,-5128,-29983,-29983,-29983,-29984,-29984,-29985]} 1. d4 {[%emt 0:00:04]} Nf6 {[%emt 0:00:09]} 2. c4 {[%emt 0:00:12]} c5 {[%emt 0:00:39]} 3. d5 {[%emt 0:00:05]} b5 {[%emt 0:00:05]} 4. cxb5 {[%emt 0:00:33]} a6 {[%emt 0:00:04]} 5. bxa6 {[%emt 0:00:09]} Bxa6 {[%emt 0:00:13]} 6. Nf3 {[%emt 0:00:12]} g6 {[%emt 0:00:07]} 7. g3 {[%emt 0:00:13]} Bg7 {[%emt 0:00:05]} 8. Bg2 {[%emt 0:00:18]} d6 {[%emt 0:00:07]} 9. O-O {[%emt 0:00:06]} O-O {[%emt 0:00:16]} 10. Nc3 {[%emt 0:00:04]} Nbd7 {[%emt 0:00:39]} 11. Rb1 {[%emt 0:01:42]} Qa5 {[%emt 0:03:35]} 12. Bd2 {[%emt 0:03:58]} Rfb8 {[%emt 0:00:20]} 13. Qc2 {[%emt 0:02:14]} Qc7 {[%emt 0:05:31]} 14. b3 {[%emt 0:01:57] Against Bc4} Nb6 {[%emt 0:01:50]} 15. Ng5 {[%emt 0:08:04]} h6 {[%emt 0:11:13] White is slightly better.} 16. Nh3 {[%emt 0:01:18]} Bb7 {[%emt 0:05:20]} 17. e4 {[%emt 0:05:57]} Ba6 {[%emt 0:01:12]} 18. Rfe1 {[%emt 0:02:18]} Ng4 $1 {[%emt 0:01:22]} 19. f4 {[%emt 0:11:41]} (19. Bf1 $14) 19... Bd4+ {[%emt 0:23:55]} ({Better is} 19... c4 $11) 20. Kh1 $14 {[%emt 0:00:27]} Qd7 {[%emt 0:06:08]} 21. Ne2 {[%emt 0:05:09]} (21. a4 $14) 21... Bf2 $1 $15 {[%emt 0:02:45]} 22. Nxf2 {[%emt 0:07:26]} Nxf2+ {[%emt 0:00:25]} 23. Kg1 {[%emt 0:00:02]} Bd3 {[%emt 0:00:52]} 24. Qc3 {[%emt 0:02:27]} Bxb1 {[%emt 0:01:40]} (24... Nxe4 $2 {too greedy.} 25. Qxd3 Nxd2 26. Qxd2 $18) 25. Rxb1 {[%emt 0:03:12]} Ng4 {[%emt 0:04:14]} (25... Nh3+ $15 26. Bxh3 Qxh3) 26. a4 $2 {[%emt 0:03:23] Loses the game.} (26. h3 $11 {and White is okay.}) 26... Nxa4 $1 $19 {[%emt 0:02:56]} 27. Qf3 {[%emt 0:02:22]} (27. Qc4 {is the only way for White.}) 27... c4 {[%emt 0:01:31]} 28. h3 {[%emt 0:01:14]} (28. b4 $142 Qa7+ 29. Kh1 Nf2+ 30. Kg1 Nd1+ (30... Nxe4+ 31. Be3 $17) 31. Kh1) 28... Qa7+ {[%emt 0:01:58]} 29. Kh1 {[%emt 0:00:13]} Nf2+ {[%emt 0:00:04]} 30. Kh2 {[%emt 0:00:08]} Nd3 {[%emt 0:00:11] aiming for ...Nac5.} 31. Be3 {[%emt 0:01:26]} (31. b4 $142) 31... Nac5 {[%emt 0:00:21]} 32. Nd4 {[%emt 0:04:02]} Qa2 {[%emt 0:01:06]} (32... cxb3 $2 33. Nc6 Qc7 34. e5 $19) 33. Rf1 {[%emt 0:00:32]} Rxb3 {[%emt 0:06:22]} (33... cxb3 $2 34. Nc6 b2 35. f5 $19) 34. Nc6 {[%emt 0:00:55]} Rb1 {[%emt 0:07:22]} 35. f5 {[%emt 0:02:47]} Rxf1 {[%emt 0:00:59]} 36. Qxf1 {[%emt 0:00:10]} Qa1 {[%emt 0:02:45] [#] Threatens to win with ...Qxf1.} (36... Nxe4 37. Nxe7+ Kf8 (37... Kg7 $2 38. Bd4+ Ne5 39. fxg6 $17) 38. fxg6 $11) 37. Qf3 {[%emt 0:00:38]} (37. e5 $142) 37... Ne5 {[%emt 0:04:47]} 38. Nxe5 {[%emt 0:04:40]} Qxe5 {[%emt 0:00:14]} 39. fxg6 {[%emt 0:00:03]} fxg6 {[%emt 0:00:21]} 40. Bxh6 {[%emt 0:04:45]} Nd3 {[%emt 0:02:46] [#] And now ...Ne1 would win.} 41. h4 {[%emt 0:50:46]} Ne1 {[%emt 0:33:07]} 42. Qe2 {[%emt 0:00:00]} Nxg2 {[%emt 0:00:00]} 43. Kxg2 {[%emt 0:00:00][%mdl 4096] Endgame. KQR-KQB} Qa1 {[%emt 0:00:00] ...Ra2 would now be deadly.} 44. Qxc4 {[%emt 0:00:00]} Ra2+ {[%emt 0:00:00]} 45. Kh3 {[%emt 0:00:00]} Qh1+ {[%emt 0:00:00]} 46. Kg4 {[%emt 0:00:00]} Qd1+ {[%emt 0:00:00]} 47. Kh3 {[%emt 0:00:00]} Ra4 {[%emt 0:00:00]} 48. Qc8+ {[%emt 0:00:00]} Kh7 {[%emt 0:00:00] ( -> ...Qf1+)} 49. Bf4 {[%emt 0:00:00]} Qf1+ {[%emt 0:00:00] Black mates.} 50. Kg4 {[%emt 0:00:00]} Qe2+ {[%emt 0:00:00]} 51. Kh3 {[%emt 0:00:00]} Ra1 {[%emt 0:00:00] Weighted Error Value: White=1.02/Black=0.33.  Loses game:     	White=1     	---        Mistake:       	White=6     	Black=2      Inaccurate:     	White=2     	Black=2      OK:         	White=6     	Black=9      Best:        	White=2     	Black=5      Strong:       	---       	Black=3} 0-1

[Event "Bangladesh SAIF Powertec-ch 2024"]
[Site "Dhaka"]
[Date "2024.07.04"]
[Round "11.4"]
[White "Abu Sufian, Shakil"]
[Black "Rahman, Ziaur"]
[Result "0-1"]
[ECO "B55"]
[WhiteElo "2202"]
[BlackElo "2423"]
[Annotator "TA"]
[PlyCount "52"]
[EventDate "2024.06.23"]
[EventType "tourn"]
[EventCountry "BAN"]
[SourceTitle "playchess.com"]
[Source "ChessBase"]
[SourceQuality "1"]
[TimeControl "40/5400+30:1800+30"]

{[%evp 11,52,8,18,25,19,15,16,19,35,0,20,10,14,0,42,27,27,0,0,0,0,0,0,0,0,-245,-252,-248,-233,-427,-417,-749,-664,-662,-662,-664,-678,-672,-677,-679,-682,-1157,-1105]} 1. e4 {[%emt 0:00:14]} c5 {[%emt 0:00:20]} 2. Nf3 {[%emt 0:00:09]} d6 {[%emt 0:02:26][%cal Bd7d6,Bd6d5][%mdl 32]} 3. d4 {[%emt 0:01:42]} cxd4 {[%emt 0:00:11]} 4. Nxd4 {[%emt 0:00:05]} Nf6 {[%emt 0:00:03]} 5. f3 {[%emt 0:00:20]} e5 {[%emt 0:00:19]} 6. Nb3 {[%emt 0:00:02]} d5 {[%emt 0:00:13]} 7. Bg5 $1 {[%emt 0:00:26]} d4 {[%emt 0:00:16]} 8. c3 {[%emt 0:00:43]} Nc6 {[%emt 0:00:32]} 9. Bb5 {[%emt 0:09:42] The position is equal.} Qb6 {[%emt 0:00:59]} 10. Bxc6+ {[%emt 0:03:19]} bxc6 {[%emt 0:00:39]} 11. cxd4 {[%emt 0:01:19]} a5 {[%emt 0:04:59] aiming for ...a4.} 12. dxe5 {[%emt 0:12:54]} Nd7 {[%emt 0:05:26][%cal Oa5a4] [#] And now ...a4! would win.} (12... a4 $5 13. exf6 axb3 $16) 13. e6 $1 {[%emt 0:15:45]} fxe6 {[%emt 0:04:01] ...a4 would now be deadly.} (13... Ne5 14. Qd4) 14. Nc3 {[%emt 0:12:20]} a4 {[%emt 0:11:57]} 15. Nd4 {[%emt 0:01:33]} Ba6 {[%emt 0:15:03] Threatens to win with ...Nc5.} 16. Qxa4 {[%emt 0:07:58][%cal Oa4b3] Black must now prevent Qb3!} Qxb2 {[%emt 0:12:03]} 17. Qxc6 {[%emt 0:05:50]} Bb4 $36 {[%emt 0:05:30][%mdl 2048] Black has good play. Dancing on a razor blade.} 18. Rc1 $2 {[%emt 0:05:28] [#]} (18. Qxa8+ $2 Kf7 19. Qxa6 Bxc3+ 20. Kd1 Qxa1+ 21. Bc1 Bxd4 $19) (18. Qxe6+ $11 {and White stays safe.} Kf8 19. Rc1 (19. Qf5+ $2 Nf6 $19) 19... Bxc3+ 20. Kd1) 18... O-O $1 $19 {[%emt 0:05:40]} 19. Rc2 {[%emt 0:02:02]} Qb1+ {[%emt 0:05:01]} 20. Kf2 $2 {[%emt 0:03:22]} (20. Rc1 {was the only defense.} Qd3 (20... Qxa2 21. Bd2 $16) 21. a3 Qxd4 (21... Bxa3 22. Rd1 $16) 22. Qxe6+ Kh8 23. axb4) 20... Qxh1 {[%emt 0:01:44]} 21. Qxd7 {[%emt 0:00:17]} (21. Rc1 $142 Qxh2 22. Qxd7) 21... Qf1+ {[%emt 0:01:32] Black is clearly winning.} ({Weaker is} 21... Qxh2 22. Nxe6 Rf7 23. Qd4 $15) 22. Kg3 {[%emt 0:01:47]} Bxc3 {[%emt 0:01:43] A strong pair of Bishops.} (22... Qe1+ 23. Kh3 Bxc3 24. Nxe6 $19) 23. Rc1 {[%emt 0:04:26]} Qd3 {[%emt 0:05:15]} 24. Qxe6+ {[%emt 0:00:05]} Kh8 {[%emt 0:00:10]} 25. Nf5 {[%emt 0:00:09]} Bc8 {[%emt 0:02:28]} 26. Qc6 {[%emt 0:01:57]} Be5+ {[%emt 0:00:18] Weighted Error Value: White=0.66/Black=0.12 (very precise) .  Loses game:     	White=1     	---        Mistake:       	White=2     	---        Inaccurate:     	White=1     	Black=1      OK:         	White=4     	Black=6      Best:        	White=3     	Black=2      Strong:       	---       	Black=1} ({Less strong is} 26... Rxa2 27. Qxc3 Qxc3 28. Rxc3 $15) 0-1

[Event "Bangladesh SAIF Powertec-ch 2024"]
[Site "Dhaka"]
[Date "2024.07.04"]
[Round "11.5"]
[White "Hossain, Enamul"]
[Black "Mohammad Fahad, Rahman"]
[Result "1-0"]
[ECO "C56"]
[WhiteElo "2365"]
[BlackElo "2437"]
[Annotator "TA"]
[PlyCount "89"]
[EventDate "2024.06.23"]
[EventType "tourn"]
[EventCountry "BAN"]
[SourceTitle "playchess.com"]
[Source "ChessBase"]
[SourceQuality "1"]
[TimeControl "40/5400+30:1800+30"]

{[%evp 11,89,4,15,8,26,12,28,13,21,16,12,23,13,27,54,37,33,28,39,39,46,0,24,20,77,52,77,87,81,85,91,42,44,10,20,0,8,5,30,0,30,36,33,29,25,28,50,41,45,40,56,46,70,68,93,64,82,81,89,74,92,83,119,113,497,280,1029,999,974,538,908,852,1105,1070,1044,1035,5520,5506,2139,1865]} 1. e4 {[%emt 0:00:06]} e5 {[%emt 0:00:45]} 2. Nf3 {[%emt 0:00:09]} Nc6 {[%emt 0:00:12]} 3. Bc4 {[%emt 0:00:46]} Nf6 {[%emt 0:00:13]} 4. d4 {[%emt 0:00:18]} exd4 {[%emt 0:01:25]} 5. e5 {[%emt 0:00:12]} Ne4 {[%emt 0:00:16]} 6. Qe2 {[%emt 0:00:54]} Nc5 $1 {[%emt 0:00:13]} 7. c3 {[%emt 0:01:31][%mdl 1024] White has compensation.} d3 {[%emt 0:01:51]} 8. Qe3 {[%emt 0:00:25][%cal Oe1g1]} Ne6 {[%emt 0:15:36]} 9. O-O {[%emt 0:08:43] White has an edge.} d6 {[%emt 0:01:28]} (9... d5 $5 10. Bxd3 a5 $11) 10. Re1 {[%emt 0:04:49]} Nxe5 {[%emt 0:09:27]} 11. Nxe5 {[%emt 0:00:34]} dxe5 {[%emt 0:00:05]} 12. Qxe5 {[%emt 0:02:32]} Qd6 {[%emt 0:15:20]} 13. Bf4 {[%emt 0:06:10]} Qxe5 {[%emt 0:17:23]} 14. Bxe5 {[%emt 0:00:18]} c6 {[%emt 0:05:22]} 15. Nd2 {[%emt 0:10:49][%cal Od2e4]} Be7 {[%emt 0:01:45]} 16. f4 {[%emt 0:04:02]} (16. Bxd3 $14 O-O 17. Bf1) 16... O-O {[%emt 0:02:41]} (16... f6 $5 17. Bxf6 Bxf6 $11) 17. f5 {[%emt 0:02:03]} b5 {[%emt 0:00:44]} (17... Nc5 $11) 18. Bxd3 $16 {[%emt 0:05:12]} Nc5 {[%emt 0:02:47]} 19. Bc2 {[%emt 0:00:45][%cal Oe5g7]} Rd8 {[%emt 0:05:16]} 20. Nf3 {[%emt 0:08:44][%cal Oe5g7]} Bf8 {[%emt 0:02:15] [#]} 21. Rad1 {[%emt 0:03:27] Repels Nd3} (21. b4 $1 $16 {[%cal Rb4c5]} Na4 (21... Nd3 22. Red1 $16) 22. f6) 21... Bb7 $14 {[%emt 0:01:43] Black is weak on the dark squares} 22. Bc7 {[%emt 0:13:50]} Re8 {[%emt 0:02:30]} 23. Ba5 {[%emt 0:08:34]} Rxe1+ {[%emt 0:01:28]} 24. Rxe1 {[%emt 0:00:10]} Na4 {[%emt 0:02:12]} 25. Bb3 {[%emt 0:04:59]} Nxb2 {[%emt 0:01:30]} (25... Bc5+ 26. Kh1 $14) 26. Ne5 {[%emt 0:00:25][%cal Oe1b1] Inhibits Nd3. Threatens to win with Rb1!} Nc4 {[%emt 0:00:06]} 27. Nxc4 {[%emt 0:00:08]} bxc4 {[%emt 0:00:02]} 28. Bxc4 {[%emt 0:00:07]} c5 {[%emt 0:00:40]} 29. g4 {[%emt 0:01:22]} Bc6 {[%emt 0:00:50]} 30. Bc7 {[%emt 0:01:36]} Rc8 {[%emt 0:01:12]} 31. Bf4 {[%emt 0:00:18]} h6 {[%emt 0:02:32]} 32. Kf2 {[%emt 0:01:24][%cal Oa2a4] White has more active pieces.} Rd8 {[%emt 0:02:21]} 33. h4 {[%emt 0:00:57]} Re8 {[%emt 0:01:29]} 34. Rxe8 {[%emt 0:02:31]} Bxe8 $16 {[%emt 0:00:01][%mdl 4096] Endgame. KBB-KBB} 35. Ba6 {[%emt 0:00:43]} Be7 {[%emt 0:00:53]} 36. h5 {[%emt 0:01:17]} Bf6 {[%emt 0:02:00]} 37. c4 {[%emt 0:00:22][%cal Bc3c4,Bc4b5][%mdl 32] Black must now prevent Bb5.} Bd8 $2 {[%emt 0:01:30][%mdl 8192] This costs Black the game.} (37... Ba4 $16) 38. Bd6 {[%emt 0:00:25]} (38. Bb5 $142 Kf8 (38... Bh4+ $2 39. Kf3 $18) 39. Ke3) 38... Bb6 $2 {[%emt 0:00:06] [#]} (38... Bd7 39. Bb5 (39. Bxc5 Bb6 $18) 39... Bc8 (39... Bh4+ $2 40. Kf3 $18) 40. Bxc5 g6 41. Bxa7 (41. hxg6 fxg6 42. fxg6 a6 $18) 41... Kg7) 39. Bb5 $1 $18 {[%emt 0:02:49] White is clearly winning.} Bxb5 {[%emt 0:00:21]} 40. cxb5 {[%emt 0:00:01] KB-KB} c4+ {[%emt 0:01:24]} 41. Ke2 {[%emt 0:30:07]} g6 {[%emt 0:00:43]} 42. fxg6 {[%emt 0:00:00]} fxg6 {[%emt 0:00:02]} 43. Bf4 {[%emt 0:00:00]} gxh5 {[%emt 0:00:29]} 44. gxh5 {[%emt 0:00:00]} (44. Bxh6 $2 {loses.} hxg4 45. Bd2 Kf7 $19) 44... Kg7 {[%emt 0:00:06]} 45. a4 {[%emt 0:00:00] Weighted Error Value: White=0.24 (precise) /Black=0.35.  Loses game:     	---       	Black=1      Mistake:       	White=3     	Black=2      Inaccurate:     	White=3     	Black=3      OK:         	White=10    	Black=10     Best:        	White=4     	---        Strong:       	White=1     	---} 1-0

[Event "Bangladesh SAIF Powertec-ch 2024"]
[Site "Dhaka"]
[Date "2024.07.04"]
[Round "11.6"]
[White "Nayem, Haque"]
[Black "Anata, Choudhury"]
[Result "1/2-1/2"]
[ECO "B90"]
[WhiteElo "2187"]
[BlackElo "2155"]
[Annotator "RC"]
[PlyCount "97"]
[EventDate "2024.06.23"]
[EventType "tourn"]
[EventCountry "BAN"]
[SourceTitle "playchess.com"]
[Source "ChessBase"]
[SourceQuality "1"]
[TimeControl "40/5400+30:1800+30"]

1. e4 {[%emt 0:18:30]} c5 {[%emt 0:00:12]} 2. Nf3 {[%emt 0:00:04]} d6 {[%emt 0:00:08]} 3. d4 {[%emt 0:00:02]} cxd4 {[%emt 0:00:08]} 4. Nxd4 {[%emt 0:00:04]} Nf6 {[%emt 0:00:11]} 5. Nc3 {[%emt 0:00:04]} a6 {[%emt 0:00:06]} 6. Rg1 {[%emt 0:00:11]} h5 {[%emt 0:00:57]} 7. Bg5 {[%emt 0:00:10]} Nbd7 {[%emt 0:00:18]} 8. Qe2 {[%emt 0:00:42]} g6 {[%emt 0:01:45]} 9. O-O-O {[%emt 0:01:44]} e5 {[%emt 0:02:10]} 10. Nb3 {[%emt 0:00:24]} Be7 {[%emt 0:00:10]} 11. g3 {[%emt 0:02:56]} b5 {[%emt 0:01:38]} 12. f4 {[%emt 0:02:17]} b4 {[%emt 0:04:49]} 13. Nb1 {[%emt 0:01:11]} Qb6 {[%emt 0:14:19]} 14. Bg2 {[%emt 0:08:02]} a5 {[%emt 0:00:59]} 15. N3d2 {[%emt 0:00:39]} Ba6 {[%emt 0:02:41]} 16. Nc4 {[%emt 0:01:11]} Qc7 {[%emt 0:00:52]} 17. Nbd2 {[%emt 0:00:27]} O-O {[%emt 0:01:13]} 18. Bf1 {[%emt 0:02:43]} Nb6 {[%emt 0:01:36]} 19. b3 {[%emt 0:00:15]} d5 {[%emt 0:01:32]} 20. exd5 {[%emt 0:00:42]} Nfxd5 {[%emt 0:01:20]} 21. Bxe7 {[%emt 0:05:14]} Qxe7 {[%emt 0:00:11]} 22. Qxe5 {[%emt 0:00:13]} Qxe5 {[%emt 0:00:43]} 23. fxe5 {[%emt 0:00:48]} Nxc4 {[%emt 0:01:22]} 24. Nxc4 {[%emt 0:01:00]} Nc3 {[%emt 0:00:14]} 25. Rd6 {[%emt 0:00:04]} Rfe8 {[%emt 0:07:51]} 26. Nb6 {[%emt 0:12:07]} Rxe5 {[%emt 0:01:58]} 27. Bxa6 {[%emt 0:02:43]} Rxa6 {[%emt 0:01:14]} 28. Rf1 {[%emt 0:03:16]} Nxa2+ {[%emt 0:07:16]} 29. Kb2 {[%emt 0:00:47]} Nc3 {[%emt 0:00:11]} 30. Nc4 {[%emt 0:03:59]} Rxd6 {[%emt 0:01:38]} 31. Nxe5 {[%emt 0:00:51]} Rd5 {[%emt 0:03:23]} 32. Re1 {[%emt 0:21:45]} Kg7 {[%emt 0:01:29]} 33. Nc4 {[%emt 0:00:33]} f6 {[%emt 0:02:20]} 34. Ra1 {[%emt 0:00:49]} g5 {[%emt 0:10:35]} 35. Nxa5 {[%emt 0:00:07]} Nd1+ {[%emt 0:08:15]} 36. Kc1 {[%emt 0:01:13]} Ne3 {[%emt 0:00:20]} 37. Nc6 {[%emt 0:00:41]} Rd1+ {[%emt 0:00:08]} 38. Kb2 {[%emt 0:00:03]} Rxa1 {[%emt 0:00:07]} 39. Kxa1 {[%emt 0:00:04]} Nd5 {[%emt 0:00:08]} 40. Kb2 {[%emt 0:00:24]} Kf7 {[%emt 0:02:54]} 41. Nd4 {[%emt 0:30:21]} Ke7 {[%emt 0:36:04]} 42. Kc1 {[%emt 0:01:23]} Kd6 {[%emt 0:02:49]} 43. Kd2 {[%emt 0:04:17]} Ke5 {[%emt 0:00:23]} 44. Kd3 {[%emt 0:00:53]} g4 {[%emt 0:00:08]} 45. Nc6+ {[%emt 0:00:51]} Kd6 {[%emt 0:00:21]} 46. Nd4 {[%emt 0:01:49]} Ke5 {[%emt 0:00:09]} 47. Ne2 {[%emt 0:00:00]} f5 {[%emt 0:00:00]} 48. c4 {[%emt 0:00:00]} bxc3 {[%emt 0:00:00]} 49. Nxc3 {[%emt 0:00:00]} 1/2-1/2